fUST/lending_fUST_20260403
["ID","MTS","AMOUNT","RATE_DAILY","PERIOD"]
[419323878,1775167839696,-1249.68808,0.00025,2]
[419323879,1775167839707,-1249.68808,0.00025,2]
[419323880,1775167839717,-1249.68808,0.00025,2]
[419323881,1775167839726,-1249.68808,0.00025,2]
[419323882,1775167839736,-297.029265,0.00025,2]
[419323883,1775167839746,-297.029265,0.00025,2]
[419323884,1775167839755,-297.029265,0.00025,2]
[419323885,1775167839765,-297.029265,0.00025,2]
[419323886,1775167839775,-243.078236,0.00025,2]
[419323887,1775167839785,-243.078236,0.00025,2]
[419323888,1775167839795,-243.078236,0.00025,2]
[419323889,1775167839804,-243.078236,0.00025,2]
[419323890,1775167839814,-151.0,0.00025,2]
[419323891,1775167839823,-157.502207,0.00025,2]
[419323892,1775167839832,-157.502207,0.00025,2]
[419323894,1775167839842,-192.021765,0.00025,2]
[419323896,1775167839852,-192.021765,0.00025,2]
[419323897,1775167839861,-151.0,0.00025,2]
[419323898,1775167839871,-157.502207,0.00025,2]
[419323899,1775167839880,-192.021765,0.00025,2]
[419323900,1775167839891,-157.502207,0.00025,2]
[419323901,1775167839900,-192.021765,0.00025,2]
[419323902,1775167839910,-151.0,0.00025,2]
[419323903,1775167839920,-192.021765,0.00025,2]
[419323904,1775167839931,-157.502207,0.00025,2]
[419323905,1775167839941,-157.502207,0.00025,2]
[419323907,1775167839952,-192.021765,0.00025,2]
[419323908,1775167839962,-151.0,0.00025,2]
[419323909,1775167839972,-151.0,0.00025,2]
[419323910,1775167839982,-192.021765,0.00025,2]
[419323911,1775167839992,-157.502207,0.00025,2]
[419323912,1775167840001,-192.021765,0.00025,2]
[419323913,1775167840011,-157.502207,0.00025,2]
[419323914,1775167840020,-151.0,0.00025,2]
[419323915,1775167840031,-151.0,0.00025,2]
[419323916,1775167840041,-151.0,0.00025,2]
[419323917,1775167840051,-151.0,0.00025,2]
[419323918,1775167840061,-175.079471,0.00025,2]
[419323919,1775167840070,-277.0,0.00025,2]
[419323920,1775167840080,-151.0,0.00025,2]
[419323921,1775167840089,-151.0,0.00025,2]
[419323922,1775167840099,-151.0,0.00025,2]
[419323923,1775167840108,-151.0,0.00025,2]
[419323924,1775167840118,-151.0,0.00025,2]
[419323925,1775167840127,-151.0,0.00025,2]
[419323926,1775167840136,-514.35868,0.00025,2]
[419323927,1775167840147,-514.35868,0.00025,2]
[419323928,1775167840157,-514.35868,0.00025,2]
[419323929,1775167840167,-514.35868,0.00025,2]
[419323930,1775167840176,-514.35868,0.00025,2]
[419323932,1775167840274,-151.0,0.00025,2]
[419323934,1775167840284,-514.35868,0.00025,2]
[419323935,1775167840293,-151.0,0.00025,2]
[419323936,1775167840304,-514.35868,0.00025,2]
[419323937,1775167840313,-514.35868,0.00025,2]
[419323939,1775167840322,-199.670436,0.00025,2]
[419323940,1775167840333,-1376.384526,0.00025,2]
[419323942,1775167840342,-1376.384526,0.00025,2]
[419323944,1775167840352,-1376.384526,0.00025,2]
[419323946,1775167840361,-1376.384526,0.00025,2]
[419323948,1775167840370,-151.0,0.00025,2]
[419323950,1775167840380,-1376.384526,0.00025,2]
[419323952,1775167840390,-1376.384526,0.00025,2]
[419323954,1775167840399,-151.0,0.00025,2]
[419323956,1775167840409,-151.0,0.00025,2]
[419323958,1775167840418,-1376.384526,0.00025,2]
[419323960,1775167840428,-1376.384526,0.00025,2]
[419323962,1775167840437,-151.0,0.00025,2]
[419323964,1775167840447,-151.0,0.00025,2]
[419323966,1775167840457,-151.0,0.00025,2]
[419323968,1775167840470,-151.0,0.00025,2]
[419323970,1775167840479,-151.0,0.00025,2]
[419323972,1775167840489,-151.0,0.00025,2]
[419323974,1775167840499,-1465.021704,0.00025,2]
[419323976,1775167840509,-1465.021704,0.00025,2]
[419323978,1775167840518,-151.0,0.00025,2]
[419323980,1775167840527,-151.0,0.00025,2]
[419323982,1775167840537,-1465.021704,0.00025,2]
[419323984,1775167840546,-1465.021704,0.00025,2]
[419323986,1775167840556,-151.0,0.00025,2]
[419323988,1775167840565,-151.0,0.00025,2]
[419323990,1775167840575,-1465.021704,0.00025,2]
[419323992,1775167840584,-1465.021704,0.00025,2]
[419323994,1775167840594,-151.0,0.00025,2]
[419323996,1775167840603,-151.0,0.00025,2]
[419323998,1775167840612,-1465.021704,0.00025,2]
[419324000,1775167840621,-1465.021704,0.00025,2]
[419324002,1775167840631,-245.743042,0.00025,2]
[419324004,1775167840640,-154.920405,0.00025,2]
[419324006,1775167840649,-154.920405,0.00025,2]
[419324007,1775167840659,-154.920405,0.00025,2]
[419324009,1775167840668,-154.920405,0.00025,2]
[419324011,1775167840678,-154.920405,0.00025,2]
[419324013,1775167840687,-154.920405,0.00025,2]
[419324015,1775167840696,-154.920405,0.00025,2]
[419324017,1775167840705,-154.920405,0.00025,2]
[419324019,1775167840714,-151.0,0.00025,2]
[419324021,1775167840723,-151.0,0.00025,2]
[419324023,1775167840732,-1314.642605,0.00025,2]
[419324025,1775167840741,-1314.642605,0.00025,2]
[419324027,1775167840750,-1314.642605,0.00025,2]
[419324029,1775167840760,-1314.642605,0.00025,2]
[419324030,1775167840768,-1314.642605,0.00025,2]
[419324032,1775167840777,-1314.642605,0.00025,2]
[419324034,1775167840787,-1314.642605,0.00025,2]
[419324036,1775167840795,-1314.642605,0.00025,2]
[419324038,1775167840804,-1033.0,0.00025,2]
[419324040,1775167840814,-655.0,0.00025,2]
[419324042,1775167840825,-655.0,0.00025,2]
[419324044,1775167840835,-655.0,0.00025,2]
[419324046,1775167840845,-655.0,0.00025,2]
[419324048,1775167840855,-655.0,0.00025,2]
[419324050,1775167840864,-655.0,0.00025,2]
[419324052,1775167840874,-655.0,0.00025,2]
[419324054,1775167840884,-655.0,0.00025,2]
[419324056,1775167840894,-655.0,0.00025,2]
[419324059,1775167840905,-655.0,0.00025,2]
[419324061,1775167840914,-1131.46,0.00025,2]
[419324062,1775167840925,-208.28119975,0.0002503,120]
[419324063,1775167840934,-214.70695761,0.0002503,120]
[419324064,1775167840944,-379.89019538,0.0002503,120]
[419324065,1775167840953,-695.5150762,0.0002503,120]
[419324066,1775167840962,-151.0,0.00025062,2]
[419324067,1775167840972,-151.0,0.00025062,2]
[419324068,1775167840981,-26067.3528021,0.00025063,2]
[419324069,1775167840991,-196.2850388,0.00025081,2]
[419324070,1775167841000,-151.0,0.0002509,2]
[419324071,1775167841010,-1249.68808,0.0002509,2]
[419324072,1775167841019,-1249.68808,0.0002509,2]
[419324073,1775167841029,-1249.68808,0.0002509,2]
[419324074,1775167841038,-1249.68808,0.0002509,2]
[419324075,1775167841048,-297.029265,0.0002509,2]
[419324076,1775167841058,-297.029265,0.0002509,2]
[419324077,1775167841067,-297.029265,0.0002509,2]
[419324078,1775167841076,-297.029265,0.0002509,2]
[419324079,1775167841086,-243.078236,0.0002509,2]
[419324080,1775167841095,-243.078236,0.0002509,2]
[419324081,1775167841105,-243.078236,0.0002509,2]
[419324082,1775167841114,-243.078236,0.0002509,2]
[419324083,1775167841124,-151.0,0.0002509,2]
[419324084,1775167841133,-151.0,0.0002509,2]
[419324085,1775167841143,-151.0,0.0002509,2]
[419324086,1775167841152,-26067.3528021,0.0002509,2]
[419324087,1775167841162,-1314.642605,0.0002509,2]
[419324088,1775167841172,-1314.642605,0.0002509,2]
[419324089,1775167841181,-1314.642605,0.0002509,2]
[419324090,1775167841191,-1314.642609,0.0002509,2]
[419324091,1775167841200,-13087.56226163,0.000251,3]
[419324092,1775167841210,-270.83333333,0.000251,3]
[419324093,1775167841219,-151.0,0.000251,2]
[419324094,1775167841228,-151.0,0.000251,2]
[419324095,1775167841238,-246.235412,0.000251,2]
[419324096,1775167841247,-246.235412,0.000251,2]
[419324097,1775167841256,-246.235412,0.000251,2]
[419324098,1775167841267,-246.235412,0.000251,2]
[419324099,1775167841277,-151.0,0.000251,2]
[419324100,1775167841286,-151.0,0.000251,2]
[419324101,1775167841295,-151.0,0.000251,2]
[419324102,1775167841305,-151.0,0.000251,2]
[419324103,1775167841315,-224.907092,0.000251,2]
[419324104,1775167841325,-1249.68808,0.000251,2]
[419324105,1775167841334,-1249.68808,0.000251,2]
[419324106,1775167841344,-1249.68808,0.000251,2]
[419324107,1775167841354,-1249.68808,0.000251,2]
[419324108,1775167841363,-297.029265,0.000251,2]
[419324109,1775167841373,-297.029265,0.000251,2]
[419324110,1775167841382,-297.029265,0.000251,2]
[419324111,1775167841392,-297.029265,0.000251,2]
[419324112,1775167841402,-243.078236,0.000251,2]
[419324113,1775167841411,-243.078236,0.000251,2]
[419324114,1775167841420,-243.078236,0.000251,2]
[419324115,1775167841430,-243.078236,0.000251,2]
[419324116,1775167841439,-151.0,0.000251,2]
[419324117,1775167841449,-157.502207,0.000251,2]
[419324118,1775167841459,-192.021765,0.000251,2]
[419324119,1775167841468,-151.0,0.000251,2]
[419324120,1775167841477,-157.502207,0.000251,2]
[419324121,1775167841487,-192.021765,0.000251,2]
[419324122,1775167841496,-151.0,0.000251,2]
[419324123,1775167841506,-192.021765,0.000251,2]
[419324124,1775167841516,-157.502207,0.000251,2]
[419324125,1775167841525,-151.0,0.000251,2]
[419324126,1775167841535,-192.021765,0.000251,2]
[419324127,1775167841545,-157.502207,0.000251,2]
[419324128,1775167841555,-151.0,0.000251,2]
[419324129,1775167841564,-151.0,0.000251,2]
[419324130,1775167841575,-153.592041,0.000251,2]
[419324131,1775167841584,-151.0,0.000251,2]
[419324132,1775167841593,-151.0,0.000251,2]
[419324133,1775167841604,-514.35868,0.000251,2]
[419324134,1775167841614,-514.35868,0.000251,2]
[419324135,1775167841624,-514.35868,0.000251,2]
[419324136,1775167841634,-151.0,0.000251,2]
[419324137,1775167841644,-514.35868,0.000251,2]
[419324138,1775167841653,-1376.384526,0.000251,2]
[419324139,1775167841662,-1376.384526,0.000251,2]
[419324140,1775167841672,-1376.384526,0.000251,2]
[419324141,1775167841682,-151.0,0.000251,2]
[419324142,1775167841691,-1376.384526,0.000251,2]
[419324143,1775167841701,-151.0,0.000251,2]
[419324144,1775167841710,-151.0,0.000251,2]
[419324145,1775167841720,-168.344712,0.000251,2]
[419324146,1775167841730,-1465.021704,0.000251,2]
[419324147,1775167841739,-151.0,0.000251,2]
[419324148,1775167841749,-1465.021704,0.000251,2]
[419324149,1775167841759,-151.0,0.000251,2]
[419324150,1775167841768,-1465.021704,0.000251,2]
[419324151,1775167841778,-151.0,0.000251,2]
[419324152,1775167841787,-1465.021704,0.000251,2]
[419324153,1775167841797,-154.920405,0.000251,2]
[419324154,1775167841806,-154.920405,0.000251,2]
[419324155,1775167841817,-154.920405,0.000251,2]
[419324156,1775167841826,-154.920405,0.000251,2]
[419324157,1775167841835,-151.0,0.000251,2]
[419324158,1775167841845,-928.0,0.00025205,5]
[419324159,1775167841854,-3190.00000001,0.00025334,3]
[419324160,1775167841864,-6302.06096562,0.00025344,2]
[419324161,1775167841874,-160.0,0.00025367,3]
[419324162,1775167841884,-184.0,0.0002538,2]
[419324163,1775167841894,-440.0,0.0002538,2]
[419324164,1775167841903,-466.55640039,0.00025396,2]
[419324165,1775167841912,-600.0,0.00025397,10]
[419324166,1775167841921,-157.502207,0.00025397,2]
[419324167,1775167841931,-192.021765,0.00025397,2]
[419324168,1775167841940,-157.502207,0.00025397,2]
[419324169,1775167841954,-192.021765,0.00025397,2]
[419324170,1775167841963,-192.021765,0.00025397,2]
[419324171,1775167841973,-157.502207,0.00025397,2]
[419324172,1775167841983,-151.0,0.00025397,2]
[419324173,1775167841992,-192.021768,0.00025397,2]
[419324174,1775167842002,-157.502203,0.00025397,2]
[419324175,1775167842011,-151.0,0.00025397,2]
[419324176,1775167842020,-151.0,0.00025397,2]
[419324177,1775167842030,-151.0,0.00025397,2]
[419324178,1775167842040,-151.0,0.00025397,2]
[419324179,1775167842049,-514.35868,0.00025397,2]
[419324180,1775167842059,-514.35868,0.00025397,2]
[419324181,1775167842068,-514.35868,0.00025397,2]
[419324182,1775167842079,-151.0,0.00025397,2]
[419324183,1775167842089,-514.358684,0.00025397,2]
[419324184,1775167842098,-900.47789458,0.00025399,15]
[419324185,1775167842108,-151.0,0.000254,13]
[419324186,1775167842117,-297.029265,0.00025414,2]
[419324187,1775167842126,-297.029265,0.00025414,2]
[419324188,1775167842135,-297.029265,0.00025414,2]
[419324189,1775167842144,-297.029257,0.00025414,2]
[419324190,1775167842153,-243.078236,0.00025414,2]
[419324191,1775167842163,-243.078236,0.00025414,2]
[419324192,1775167842172,-243.078236,0.00025414,2]
[419324193,1775167842181,-243.078235,0.00025414,2]
[419324194,1775167842190,-258.037484,0.00025414,2]
[419324195,1775167842199,-151.0,0.00025414,2]
[419324196,1775167842208,-151.0,0.00025414,2]
[419324197,1775167842217,-1376.384526,0.00025414,2]
[419324198,1775167842227,-1376.384526,0.00025414,2]
[419324199,1775167842236,-1376.384526,0.00025414,2]
[419324200,1775167842245,-152.738306,0.00025414,2]
[419324201,1775167842255,-1376.384531,0.00025414,2]
[419324202,1775167842264,-151.0,0.00025414,2]
[419324203,1775167842274,-151.0,0.00025414,2]
[419324204,1775167842283,-1465.021704,0.00025414,2]
[419324205,1775167842292,-151.0,0.00025414,2]
[419324206,1775167842302,-1465.021704,0.00025414,2]
[419324207,1775167842311,-151.0,0.00025414,2]
[419324208,1775167842321,-1465.021704,0.00025414,2]
[419324209,1775167842330,-151.0,0.00025414,2]
[419324210,1775167842339,-1465.021696,0.00025414,2]
[419324211,1775167842426,-154.920405,0.00025414,2]
[419324212,1775167842435,-154.920405,0.00025414,2]
[419324213,1775167842445,-154.920405,0.00025414,2]
[419324214,1775167842455,-154.920413,0.00025414,2]
[419324215,1775167842463,-26067.3528021,0.00025414,2]
[419324216,1775167842472,-151.0,0.00025424,2]
[419324217,1775167842482,-246.235412,0.00025424,2]
[419324218,1775167842491,-246.235412,0.00025424,2]
[419324219,1775167842500,-246.235412,0.00025424,2]
[419324220,1775167842510,-246.235412,0.00025424,2]
[419324221,1775167842519,-151.0,0.00025424,2]
[419324222,1775167842529,-290.317839,0.00025424,2]
[419324223,1775167842538,-151.340104,0.00025424,2]
[419324225,1775167842547,-1249.68808,0.00025424,2]
[419324227,1775167842556,-1249.68808,0.00025424,2]
[419324228,1775167842566,-1249.68808,0.00025424,2]
[419324229,1775167842576,-1249.68808,0.00025424,2]
[419324230,1775167842586,-151.0,0.00025434,2]
[419324231,1775167842595,-246.235412,0.00025434,2]
[419324232,1775167842605,-246.235412,0.00025434,2]
[419324233,1775167842615,-246.235412,0.00025434,2]
[419324234,1775167842626,-246.235412,0.00025434,2]
[419324235,1775167842636,-151.0,0.00025434,2]
[419324236,1775167842646,-234606.175219,0.00025434,2]
[419324237,1775167842656,-390859.47142048,0.00025444,2]
[419324238,1775167842677,-814.419644,0.00025444,2]
[419324268,1775167844615,-5000.0,0.0002519,2]
[419324270,1775167844624,-937837.08622968,0.00025444,2]
[419324396,1775167846160,-14629.3000864,0.00025444,2]
[419324414,1775169031971,-2719.4386483,0.00012897,2]
[419324415,1775169032028,-1410.83091649,0.00012897,2]
[419324522,1775169038180,-869.73043521,0.00012897,2]
[419324524,1775169038191,-452.88143864,0.00012897,2]
[419324525,1775169038349,-150.11856136,0.00012897,2]
[419324526,1775169038358,-156.0,0.00013699,2]
[419324527,1775169038368,-1000.0,0.00013699,2]
[419324528,1775169038377,-514.355089,0.00018873,2]
[419324529,1775169038386,-168.740303,0.00020096,2]
[419324530,1775169038395,-168.740303,0.00020096,61]
[419324531,1775169038404,-168.740303,0.00020096,120]
[419324532,1775169038414,-1371.0,0.00020582,2]
[419324533,1775169038423,-184.0,0.00020582,2]
[419324534,1775169038432,-440.0,0.00020582,2]
[419324535,1775169038441,-221.0,0.00022,2]
[419324536,1775169038451,-156.225,0.00022209,2]
[419324537,1775169038460,-15717.23156598,0.00022713,2]
[419324538,1775169038471,-1745.76882788,0.00022713,2]
[419324539,1775169038482,-35.78938284,0.00022713,2]
[419324540,1775169038491,-276.0,0.00022738,2]
[419324541,1775169038500,-876.36,0.00022803,10]
[419324542,1775169038510,-266.18391203,0.00022812,2]
[419324543,1775169038519,-500.0,0.00022812,2]
[419324544,1775169038528,-500.0,0.00022812,2]
[419324545,1775169038538,-429.87569247,0.00022812,2]
[419324546,1775169038547,-500.0,0.00022812,2]
[419324547,1775169038557,-500.0,0.00022812,2]
[419324548,1775169038567,-500.0,0.00022812,2]
[419324549,1775169038576,-500.0,0.00022812,2]
[419324550,1775169038586,-374.53615574,0.00022812,2]
[419324551,1775169038596,-500.0,0.00022812,2]
[419324552,1775169038605,-500.0,0.00022812,2]
[419324553,1775169038616,-500.0,0.00022812,2]
[419324554,1775169038625,-500.0,0.00022812,2]
[419324555,1775169038634,-500.0,0.00022812,2]
[419324556,1775169038643,-500.0,0.00022812,2]
[419324557,1775169038654,-550.0,0.00022812,2]
[419324558,1775169038664,-19166.94331702,0.00022813,2]
[419324559,1775169038676,-1020910.33082448,0.00022813,2]
[419324560,1775169038696,-200.0,0.00022899,2]
[419324561,1775169038708,-654.24999428,0.000229,2]
[419324562,1775169038717,-221.0,0.00023,2]
[419324563,1775169038727,-270.83333333,0.00023,2]
[419324564,1775169038737,-206.67217961,0.00023013,2]
[419324565,1775169038746,-50000.0,0.00023013,2]
[419324566,1775169038756,-171.0,0.00023352,120]
[419324567,1775169038766,-2113.67,0.00023472,3]
[419324568,1775169038776,-1056.84,0.00023472,3]
[419324569,1775169038786,-528.42,0.00023472,3]
[419324570,1775169038796,-440.35,0.00023472,3]
[419324571,1775169038807,-220.17,0.00023472,3]
[419324572,1775169038816,-660.55,0.00023472,3]
[419324573,1775169038827,-5671.85486913,0.00023481,2]
[419324574,1775169038836,-200.0,0.00023581,2]
[419324575,1775169038846,-184.0,0.00023582,2]
[419324576,1775169038856,-394.116,0.00023582,2]
[419324577,1775169038866,-654.24999428,0.00023757,2]
[419324578,1775169038875,-221.0,0.00024,2]
[419324579,1775169038885,-171.0,0.0002452,120]
[419324580,1775169038895,-654.24999428,0.00024614,2]
[419324581,1775169038904,-928.0,0.00024658,5]
[419324582,1775169038914,-4227.34,0.00024842,3]
[419324583,1775169038924,-2113.68,0.00024842,3]
[419324584,1775169038935,-270.83333333,0.00024842,3]
[419324585,1775169038944,-880.7,0.00024842,3]
[419324586,1775169038954,-440.34,0.00024842,3]
[419324587,1775169038964,-168.0,0.00024855,2]
[419324588,1775169038973,-500.0,0.00024873,2]
[419324589,1775169038983,-500.0,0.00024873,2]
[419324590,1775169038993,-500.0,0.00024873,2]
[419324591,1775169039004,-500.0,0.00024873,2]
[419324592,1775169039013,-500.0,0.00024873,2]
[419324593,1775169039023,-500.0,0.00024873,2]
[419324594,1775169039032,-500.0,0.00024873,2]
[419324595,1775169039042,-500.0,0.00024873,2]
[419324596,1775169039052,-500.0,0.00024873,2]
[419324597,1775169039062,-156404.116813,0.000249,2]
[419324598,1775169039072,-928.0,0.00024932,5]
[419324599,1775169039083,-221.0,0.00025,2]
[419324600,1775169039092,-168.0,0.00025053,2]
[419324601,1775169039102,-928.0,0.00025205,5]
[419324602,1775169039112,-1159.84336011,0.000253,75]
[419324603,1775169039122,-1000.0,0.00025421,2]
[419324604,1775169039132,-1000.0,0.00025421,2]
[419324605,1775169039141,-1000.0,0.00025421,2]
[419324606,1775169039150,-363.25876166,0.00025421,2]
[419324607,1775169039160,-1000.0,0.00025421,2]
[419324608,1775169039169,-854.25473362,0.00025421,2]
[419324609,1775169039179,-1000.0,0.00025421,2]
[419324610,1775169039188,-1000.0,0.00025421,2]
[419324611,1775169039198,-1000.0,0.00025421,2]
[419324612,1775169039207,-151.0,0.00025444,2]
[419324613,1775169039218,-505951.93237251,0.00025444,2]
[419324863,1775169043479,-1129.77028718,0.0002519,2]
[419324865,1775169043489,-217076.93740491,0.00025444,2]
[419324871,1775169043542,-250.70886778,0.00025444,2]
[419324994,1775170232289,-673.65800602,0.00012897,2]
[419325014,1775170238371,-1666.4134488,0.00012897,2]
[419325015,1775170238424,-2659.92854518,0.00012897,2]
[419325016,1775170238434,-605.0,0.00013027,2]
[419325017,1775170238443,-1000.0,0.00013699,2]
[419325018,1775170238453,-637.86807614,0.00014175,2]
[419325019,1775170238463,-458.4747748,0.000149,2]
[419325020,1775170238473,-458.4747748,0.000149,2]
[419325021,1775170238484,-458.4747748,0.000149,2]
[419325022,1775170238494,-1199.81430148,0.00014993,2]
[419325023,1775170238504,-1761.76052682,0.00015811,2]
[419325024,1775170238514,-2059.85185547,0.0001663,2]
[419325025,1775170238524,-168.155937,0.0001862,2]
[419325026,1775170238534,-45445.37030241,0.0001862,2]
[419325027,1775170238543,-2792.70557582,0.00019084,5]
[419325028,1775170238552,-153.0,0.000209,2]
[419325029,1775170238562,-3447.59920283,0.00021539,19]
[419325030,1775170238572,-5050.263279,0.00021673,2]
[419325031,1775170238581,-163.0,0.000219,2]
[419325033,1775170238590,-155.0,0.00022,2]
[419325034,1775170238600,-193.0,0.00022,2]
[419325035,1775170238609,-153.0,0.00022,2]
[419325037,1775170238618,-169.0,0.00023,2]
[419325038,1775170238639,-193.0,0.00023,2]
[419325039,1775170238650,-165.0,0.00023,2]
[419325040,1775170238659,-270.83333333,0.00023,2]
[419325041,1775170238669,-200.0,0.00023737,2]
[419325042,1775170238678,-193.0,0.00024,2]
[419325043,1775170238688,-154.824,0.000242,6]
[419325044,1775170238698,-928.0,0.00024658,5]
[419325045,1775170238707,-928.0,0.00024932,5]
[419325046,1775170238717,-193.0,0.00025,2]
[419325047,1775170238726,-928.0,0.00025205,5]
[419325048,1775170238736,-5104.66938219,0.00025344,2]
[419325049,1775170238745,-425.82981527,0.00025443,2]
[419325050,1775170238755,-186.32873842,0.00025443,2]
[419325051,1775170238764,-500.0,0.00025443,2]
[419325052,1775170238774,-500.0,0.00025443,2]
[419325053,1775170238783,-500.0,0.00025443,2]
[419325054,1775170238793,-500.0,0.00025443,2]
[419325055,1775170238802,-357.3548325,0.00025443,2]
[419325056,1775170238812,-500.0,0.00025443,2]
[419325057,1775170238821,-500.0,0.00025443,2]
[419325058,1775170238831,-500.0,0.00025443,2]
[419325059,1775170238840,-500.0,0.00025443,2]
[419325060,1775170238850,-500.0,0.00025443,2]
[419325061,1775170238860,-500.0,0.00025443,2]
[419325062,1775170238870,-500.0,0.00025443,2]
[419325063,1775170238880,-500.0,0.00025443,2]
[419325064,1775170238890,-500.0,0.00025443,2]
[419325065,1775170238900,-500.0,0.00025443,2]
[419325066,1775170238911,-500.0,0.00025443,2]
[419325067,1775170238922,-500.0,0.00025443,2]
[419325068,1775170238931,-500.0,0.00025443,2]
[419325069,1775170238941,-200.0,0.00025443,2]
[419325070,1775170238951,-500.0,0.00025443,2]
[419325071,1775170238960,-500.0,0.00025443,2]
[419325072,1775170238970,-1609.83,0.00025444,30]
[419325073,1775170238980,-50865.87250661,0.00025444,2]
[419325080,1775170241035,-587.0,0.00025444,2]
[419325087,1775170243554,-300.0,0.00025444,2]
[419325088,1775170243713,-28899.36,0.00025444,2]
[419325089,1775170243725,-798.23978973,0.00025444,2]
[419325090,1775170243767,-3391.27069464,0.00025444,2]
[419325091,1775170243779,-1540.817128,0.00025444,2]
[419325092,1775170243790,-1891.0220345,0.00025444,2]
[419325097,1775170246588,-725.20155262,0.00025444,3]
[419325098,1775170246598,-585.45700828,0.00025444,3]
[419325099,1775170246607,-361.58808089,0.00025444,3]
[419325100,1775170246616,-200.0,0.00025444,2]
[419325101,1775170246626,-828.0,0.00025444,2]
[419325102,1775170246635,-6917.7986602,0.00025444,2]
[419325103,1775170246647,-9523.08965803,0.00025444,2]
[419325104,1775170246662,-4215.9999828,0.00025444,2]
[419325105,1775170246694,-9222.75714501,0.00025444,2]
[419325128,1775171438811,-572.35719235,0.00012389,2]
[419325210,1775171444477,-595.0,0.00012389,2]
[419325212,1775171444487,-5000.0,0.00012514,2]
[419325214,1775171444496,-1000.0,0.00013699,2]
[419325216,1775171444506,-4557.48947438,0.00018,2]
[419325218,1775171444516,-3558.98939862,0.00019,2]
[419325220,1775171444528,-927.1608562,0.00019,2]
[419325264,1775171446848,-20172.66837341,0.00019,2]
[419325265,1775171446857,-374.81345588,0.0002,2]
[419325266,1775171446866,-204.48357123,0.0002,2]
[419325267,1775171446875,-184.0,0.00020935,2]
[419325268,1775171446884,-401.96048506,0.00021999,2]
[419325269,1775171446893,-500.0,0.00021999,2]
[419325270,1775171446915,-500.0,0.00021999,2]
[419325271,1775171446924,-500.0,0.00021999,2]
[419325272,1775171446934,-337.27404919,0.00021999,2]
[419325273,1775171446944,-500.0,0.00021999,2]
[419325274,1775171446954,-500.0,0.00021999,2]
[419325275,1775171446963,-500.0,0.00021999,2]
[419325276,1775171446973,-500.0,0.00021999,2]
[419325277,1775171446982,-500.0,0.00021999,2]
[419325278,1775171446992,-500.0,0.00021999,2]
[419325279,1775171447001,-500.0,0.00021999,2]
[419325280,1775171447011,-500.0,0.00021999,2]
[419325281,1775171447021,-500.0,0.00021999,2]
[419325282,1775171447030,-500.0,0.00021999,2]
[419325283,1775171447040,-154.0,0.00022,2]
[419325284,1775171447049,-45334.92343228,0.00022,2]
[419325285,1775171447062,-5347.28710754,0.00022,2]
[419325316,1775172632568,-5000.0,0.00012897,2]
[419325318,1775172632578,-603.0,0.00012897,2]
[419325320,1775172632588,-251.0852946,0.00013699,2]
[419325322,1775172632599,-748.9147054,0.00013699,2]